fUSD/lending_fUSD_20240420
["ID","MTS","AMOUNT","RATE_DAILY","PERIOD"]
[323042934,1713615039515,-150.0,0.00014548,2]
[323042935,1713615039525,-700.58,0.00014548,2]
[323042936,1713615039535,-150.0,0.00014548,2]
[323042937,1713615039545,-150.0,0.00014548,2]
[323042938,1713615039554,-150.0,0.00014548,2]
[323042939,1713615039564,-162.7,0.00014548,2]
[323042940,1713615039574,-150.0,0.00014548,2]
[323042941,1713615039584,-150.0,0.00014548,2]
[323042942,1713615039593,-162.7,0.00014548,2]
[323042943,1713615039603,-150.0,0.00014548,2]
[323042944,1713615039612,-150.0,0.00014548,2]
[323042945,1713615039622,-162.7,0.00014548,2]
[323042946,1713615039631,-162.7,0.00014548,2]
[323042947,1713615039640,-150.0,0.00014548,2]
[323042948,1713615039650,-150.0,0.00014548,2]
[323042949,1713615039660,-160.39,0.00014548,2]
[323042950,1713615039671,-150.0,0.00014548,2]
[323042951,1713615039681,-150.0,0.00014548,2]
[323042952,1713615039691,-370.39,0.00014548,2]
[323042953,1713615039700,-251.28214672,0.00014549,2]
[323042954,1713615039709,-10000.0,0.00014552,2]
[323042955,1713615039719,-150.0,0.00014575,2]
[323042956,1713615039728,-300.0,0.00014575,2]
[323042957,1713615039738,-1500.0,0.00014581,2]
[323042958,1713615039747,-1500.0,0.00014584,2]
[323042959,1713615039756,-1500.0,0.00014585,2]
[323042960,1713615039766,-1500.0,0.00014587,2]
[323042961,1713615039776,-524.73029564,0.00014597,2]
[323042962,1713615039786,-15703.883,0.00014598,2]
[323042963,1713615039795,-3808.0366,0.00014598,2]
[323042964,1713615039804,-425.444,0.00014598,2]
[323042965,1713615039813,-1500.0,0.00014599,2]
[323042966,1713615039823,-157.35965338,0.000146,2]
[323042967,1713615039833,-1500.0,0.000146,2]
[323042968,1713615039842,-150.0,0.00014604,2]
[323042969,1713615039851,-700.58,0.0001461,2]
[323042970,1713615039860,-150.0,0.00014611,2]
[323042971,1713615039870,-3622.81817872,0.00014611,2]
[323042972,1713615039879,-1500.0,0.00014617,2]
[323042973,1713615039889,-150.0,0.00014619,2]
[323042974,1713615039899,-531.0,0.0001463,2]
[323042975,1713615039909,-300.0,0.00014633,2]
[323042976,1713615039919,-150.0,0.00014641,2]
[323042977,1713615039928,-1500.0,0.00014652,2]
[323042978,1713615039937,-1500.0,0.00014653,2]
[323042979,1713615039947,-803.0,0.00014658,2]
[323042980,1713615039956,-150.0,0.00014663,2]
[323042981,1713615039966,-150.0,0.00014672,2]
[323042982,1713615039976,-150.0,0.00014679,2]
[323042983,1713615039985,-154.38,0.00014685,2]
[323042984,1713615039994,-747.38,0.00014685,2]
[323042985,1713615040003,-521.47,0.00014685,2]
[323042986,1713615040012,-150.0,0.00014685,2]
[323042987,1713615040022,-155.0,0.00014694,2]
[323042988,1713615040031,-266.37511234,0.00014694,2]
[323042989,1713615040041,-150.0,0.00014694,2]
[323042990,1713615040050,-324.94135592,0.00014695,2]
[323042991,1713615040060,-3241.21353386,0.00014695,2]
[323042992,1713615040069,-1276.75792476,0.00014696,2]
[323042993,1713615040080,-158.8652616,0.00014696,2]
[323042994,1713615040090,-7886.4047431,0.00014696,2]
[323042995,1713615040099,-1393.58447337,0.00014696,2]
[323042996,1713615040108,-1127.03271038,0.00014696,2]
[323042997,1713615040117,-155.0,0.00014696,2]
[323042998,1713615040127,-208.1761724,0.00014696,2]
[323042999,1713615040136,-3083.71213711,0.00014696,2]
[323043000,1713615040147,-155.77454746,0.00014696,2]
[323043001,1713615040156,-179.06357164,0.00014696,2]
[323043002,1713615040165,-205.09845828,0.00014697,2]
[323043003,1713615040174,-258.57500002,0.00014697,2]
[323043004,1713615040183,-990.0411,0.00014698,2]
[323043005,1713615040193,-98758.62,0.00014698,2]
[323043006,1713615040202,-245000.0,0.00014698,2]
[323043007,1713615040212,-1500.0,0.0001471,2]
[323043008,1713615040221,-300.0,0.00014711,2]
[323043009,1713615040231,-150.0,0.00014713,2]
[323043010,1713615040241,-150.0,0.00014717,2]
[323043011,1713615040250,-150.0,0.00014718,2]
[323043012,1713615040260,-150.0,0.00014722,2]
[323043013,1713615040269,-150.0,0.00014726,2]
[323043014,1713615040279,-1500.0,0.00014727,2]
[323043015,1713615040289,-1500.0,0.00014738,2]
[323043016,1713615040299,-1500.0,0.00014741,2]
[323043017,1713615040309,-150.0,0.00014745,2]
[323043018,1713615040318,-1500.0,0.00014751,2]
[323043019,1713615040578,-1500.0,0.00014754,2]
[323043020,1713615040601,-150.0,0.00014754,2]
[323043021,1713615040611,-150.0,0.00014793,2]
[323043022,1713615040620,-941.81637,0.00014795,2]
[323043023,1713615040629,-150.0,0.00014795,2]
[323043024,1713615040638,-150.0,0.00014799,2]
[323043025,1713615040650,-301.3360073,0.0001481,2]
[323043026,1713615040659,-384.0,0.00014812,2]
[323043028,1713615040668,-150.0,0.00014813,2]
[323043029,1713615040677,-150.0,0.00014815,2]
[323043030,1713615040686,-3622.8181787,0.00014819,2]
[323043031,1713615040696,-150.0,0.00014822,2]
[323043032,1713615040706,-150.0,0.00014822,2]
[323043033,1713615040715,-150.0,0.00014822,2]
[323043034,1713615040724,-150.0,0.00014822,2]
[323043035,1713615040732,-150.0,0.00014822,2]
[323043036,1713615040741,-160.2,0.00014822,2]
[323043037,1713615040750,-150.0,0.00014849,2]
[323043038,1713615040759,-150.0,0.00014852,2]
[323043039,1713615040768,-150.0,0.00014873,2]
[323043040,1713615040777,-1500.0,0.00014886,2]
[323043041,1713615040786,-1500.0,0.00014894,2]
[323043042,1713615040795,-150.0,0.00014897,2]
[323043043,1713615040804,-7500.0,0.00014899,2]
[323043044,1713615040814,-150.0,0.00014899,2]
[323043045,1713615040823,-174.24710374,0.000149,2]
[323043046,1713615040832,-1000.0,0.000149,2]
[323043047,1713615040841,-175.57554185,0.000149,2]
[323043048,1713615040850,-18726.23596932,0.000149,2]
[323043049,1713615040859,-296.20021659,0.000149,2]
[323043050,1713615040869,-1500.0,0.00014905,2]
[323043051,1713615040878,-150.0,0.00014916,2]
[323043052,1713615040887,-1221.59250652,0.0001492,2]
[323043053,1713615040897,-150.0,0.00014921,2]
[323043054,1713615040906,-150.0,0.00014923,2]
[323043055,1713615040915,-1500.0,0.00014948,2]
[323043056,1713615040925,-150.0,0.00014964,2]
[323043057,1713615040934,-1500.0,0.00014964,2]
[323043058,1713615040944,-10000.0,0.00014968,2]
[323043059,1713615040955,-545.8088,0.00014968,2]
[323043060,1713615040965,-5642.93302874,0.00014968,2]
[323043061,1713615040974,-241.1633292,0.00014968,2]
[323043062,1713615040983,-12260.56754514,0.0001498,2]
[323043063,1713615040992,-1500.0,0.00014983,2]
[323043064,1713615041002,-152.35,0.00014989,2]
[323043065,1713615041013,-152.35,0.00014989,2]
[323043066,1713615041022,-1500.0,0.0001499,2]
[323043067,1713615041031,-152.35,0.0001499,2]
[323043068,1713615041041,-152.35,0.0001499,2]
[323043069,1713615041050,-152.35,0.0001499,2]
[323043070,1713615041059,-152.35,0.0001499,2]
[323043071,1713615041069,-152.35,0.0001499,2]
[323043072,1713615041079,-152.35,0.0001499,2]
[323043073,1713615041089,-152.35,0.0001499,2]
[323043074,1713615041100,-152.35,0.0001499,2]
[323043075,1713615041111,-150.0,0.00014991,2]
[323043076,1713615041122,-499.37090651,0.00014997,2]
[323043077,1713615041133,-166.96716868,0.00014997,2]
[323043078,1713615041143,-155.0,0.00014998,2]
[323043079,1713615041155,-206.18426768,0.00014998,2]
[323043080,1713615041166,-161.26291727,0.00014998,2]
[323043081,1713615041175,-199.87072247,0.00014998,2]
[323043082,1713615041184,-155.35145288,0.00014998,2]
[323043083,1713615041194,-511.28961468,0.00014998,2]
[323043084,1713615041204,-407.56490296,0.00014998,2]
[323043085,1713615041213,-309.40866786,0.00014998,2]
[323043086,1713615041223,-155.38655138,0.00014998,2]
[323043087,1713615041233,-340.76311324,0.00014998,2]
[323043088,1713615041245,-2163.22909974,0.00014998,2]
[323043089,1713615041255,-486.23899963,0.00014998,2]
[323043090,1713615041265,-236.19627997,0.00014998,2]
[323043091,1713615041274,-2353.62009514,0.00014998,2]
[323043092,1713615041284,-313.58324232,0.00014998,2]
[323043093,1713615041293,-633.33343995,0.00014999,2]
[323043094,1713615041302,-12032.43470322,0.00014999,2]
[323043095,1713615041311,-380299.60018776,0.00014999,2]
[323043096,1713615041320,-2250.09480175,0.00015,2]
[323043097,1713615041329,-1147698.20336062,0.00015,2]
[323043098,1713615041338,-255.44507239,0.00015,2]
[323043099,1713615041348,-5000.0,0.00015,2]
[323043100,1713615041357,-1474.54177032,0.00015,2]
[323043101,1713615041366,-2000.0,0.00015,2]
[323043102,1713615041376,-825.4238,0.00015,3]
[323043103,1713615041386,-200000.0,0.00015,5]
[323043104,1713615041395,-617.34653271,0.00015,2]
[323043105,1713615041404,-205.77957528,0.00015,2]
[323043106,1713615041415,-191.20345887,0.00015,2]
[323043107,1713615041424,-809.0,0.00015,2]
[323043108,1713615041434,-257.9599885,0.00015,2]
[323043109,1713615041443,-155.0,0.00015,2]
[323043110,1713615041452,-63917.88797172,0.00015,2]
[323043111,1713615041462,-3324.0,0.00015,2]
[323043112,1713615041471,-3000.0,0.00015,2]
[323043113,1713615041481,-300.0,0.00015006,2]
[323043114,1713615041491,-150.0,0.00015013,2]
[323043115,1713615041500,-150.0,0.00015014,2]
[323043116,1713615041509,-3622.8181787,0.00015026,2]
[323043117,1713615041519,-150.77228815,0.00015037,2]
[323043118,1713615041528,-150.0,0.00015055,2]
[323043119,1713615041538,-152.35,0.00015058,2]
[323043120,1713615041547,-1500.0,0.00015062,2]
[323043121,1713615041556,-1500.0,0.00015065,2]
[323043122,1713615041565,-1500.0,0.00015067,2]
[323043123,1713615041574,-500.0,0.00015068,2]
[323043124,1713615041583,-500.0,0.00015068,2]
[323043125,1713615041593,-16688.41357389,0.00015068,2]
[323043126,1713615041602,-76731.60408531,0.00015068,2]
[323043127,1713615041611,-3313.96562417,0.00015068,2]
[323043128,1713615041620,-500.0,0.00015068,2]
[323043129,1713615041629,-1040.35697366,0.00015068,2]
[323043130,1713615041638,-500.0,0.00015068,2]
[323043131,1713615041649,-212.33837006,0.00015068,2]
[323043132,1713615041659,-500.0,0.00015068,2]
[323043133,1713615041668,-829.47,0.00015068,2]
[323043134,1713615041677,-500.0,0.00015068,2]
[323043135,1713615041687,-500.0,0.00015068,2]
[323043136,1713615041696,-500.0,0.00015068,2]
[323043137,1713615041705,-458.08956046,0.00015068,2]
[323043138,1713615041715,-752.45,0.00015068,2]
[323043139,1713615041724,-500.0,0.00015068,2]
[323043140,1713615041733,-940.84,0.00015068,2]
[323043141,1713615041743,-500.0,0.00015068,2]
[323043142,1713615041752,-648.02,0.00015068,2]
[323043143,1713615041761,-500.0,0.00015068,2]
[323043144,1713615041770,-500.0,0.00015068,2]
[323043145,1713615041779,-500.0,0.00015068,2]
[323043146,1713615041789,-310.25086712,0.00015068,2]
[323043147,1713615041798,-500.0,0.00015068,2]
[323043148,1713615041807,-500.0,0.00015068,2]
[323043149,1713615041816,-500.0,0.00015068,2]
[323043150,1713615041825,-500.0,0.00015068,2]
[323043151,1713615041834,-500.0,0.00015068,2]
[323043152,1713615041843,-298.39339498,0.00015068,2]
[323043153,1713615041853,-500.0,0.00015068,2]
[323043154,1713615041862,-500.0,0.00015068,2]
[323043155,1713615041871,-500.0,0.00015068,2]
[323043156,1713615041881,-500.0,0.00015068,2]
[323043157,1713615041890,-239.664402,0.00015068,2]
[323043158,1713615041900,-500.0,0.00015068,2]
[323043159,1713615041910,-500.0,0.00015068,2]
[323043160,1713615041919,-500.0,0.00015068,2]
[323043161,1713615041928,-500.0,0.00015068,2]
[323043162,1713615041937,-741.19,0.00015068,2]
[323043163,1713615041946,-669.09,0.00015068,2]
[323043164,1713615041955,-500.0,0.00015068,2]
[323043165,1713615041965,-546.2,0.00015068,2]
[323043166,1713615041974,-1083.21,0.00015068,2]
[323043167,1713615041983,-598.99,0.00015068,2]
[323043168,1713615041997,-503.4739451,0.00015068,2]
[323043169,1713615042006,-500.0,0.00015068,2]
[323043170,1713615042015,-500.0,0.00015068,2]
[323043171,1713615042024,-500.0,0.00015068,2]
[323043172,1713615042034,-500.0,0.00015068,2]
[323043173,1713615042043,-500.0,0.00015068,2]
[323043174,1713615042052,-500.0,0.00015068,2]
[323043175,1713615042061,-500.0,0.00015068,2]
[323043176,1713615042070,-500.0,0.00015068,2]
[323043177,1713615042079,-614.66,0.00015068,2]
[323043178,1713615042088,-500.0,0.00015068,2]
[323043179,1713615042097,-155.852947,0.00015068,2]
[323043180,1713615042106,-375.86933541,0.00015068,2]
[323043181,1713615042115,-500.0,0.00015068,2]
[323043182,1713615042124,-605.59,0.00015068,2]
[323043183,1713615042133,-500.0,0.00015068,2]
[323043184,1713615042142,-887.51,0.00015068,2]
[323043185,1713615042156,-500.0,0.00015068,2]
[323043186,1713615042165,-500.0,0.00015068,2]
[323043187,1713615042175,-500.0,0.00015068,2]
[323043188,1713615042185,-500.0,0.00015068,2]
[323043189,1713615042195,-500.0,0.00015068,2]
[323043190,1713615042206,-500.0,0.00015068,2]
[323043191,1713615042216,-500.0,0.00015068,2]
[323043192,1713615042226,-500.0,0.00015068,2]
[323043193,1713615042235,-500.0,0.00015068,2]
[323043194,1713615042245,-500.0,0.00015068,2]
[323043195,1713615042256,-503.0,0.00015068,2]
[323043196,1713615042266,-500.0,0.00015068,2]
[323043197,1713615042275,-500.0,0.00015068,2]
[323043198,1713615042284,-500.0,0.00015068,2]
[323043199,1713615042293,-500.0,0.00015068,2]
[323043200,1713615042303,-151.0,0.00015068,2]
[323043201,1713615042313,-500.0,0.00015068,2]
[323043202,1713615042322,-500.0,0.00015068,2]
[323043203,1713615042331,-500.0,0.00015068,2]
[323043204,1713615042341,-566.5,0.00015068,2]
[323043205,1713615042351,-500.0,0.00015068,2]
[323043206,1713615042362,-500.0,0.00015068,2]
[323043207,1713615042374,-500.0,0.00015068,2]
[323043208,1713615042385,-500.0,0.00015068,2]
[323043209,1713615042394,-500.0,0.00015068,2]
[323043210,1713615042404,-151.0,0.00015068,2]
[323043211,1713615042413,-500.0,0.00015068,2]
[323043212,1713615042423,-500.0,0.00015068,2]
[323043213,1713615042433,-500.0,0.00015068,2]
[323043214,1713615042442,-500.0,0.00015068,2]
[323043215,1713615042452,-500.0,0.00015068,2]
[323043216,1713615042462,-670.39,0.00015068,2]
[323043217,1713615042471,-151.0,0.00015068,2]
[323043218,1713615042481,-500.0,0.00015068,2]
[323043219,1713615042490,-828.03,0.00015068,2]
[323043220,1713615042501,-605.06,0.00015068,2]
[323043221,1713615042512,-155.25281614,0.00015068,2]
[323043222,1713615042522,-500.0,0.00015068,2]
[323043223,1713615042530,-500.0,0.00015068,2]
[323043224,1713615042540,-151.0,0.00015068,2]
[323043225,1713615042548,-500.0,0.00015068,2]
[323043226,1713615042557,-503.8,0.00015068,2]
[323043227,1713615042566,-500.0,0.00015068,2]
[323043228,1713615042575,-151.0,0.00015068,2]
[323043229,1713615042584,-500.0,0.00015068,2]
[323043230,1713615042594,-500.0,0.00015068,2]
[323043231,1713615042603,-500.0,0.00015068,2]
[323043232,1713615042612,-503.33327216,0.00015068,2]
[323043233,1713615042621,-510.23,0.00015068,2]
[323043234,1713615042631,-500.0,0.00015068,2]
[323043235,1713615042640,-151.0,0.00015068,2]
[323043236,1713615042650,-500.0,0.00015068,2]
[323043237,1713615042659,-500.0,0.00015068,2]
[323043238,1713615042668,-500.0,0.00015068,2]
[323043239,1713615042677,-500.0,0.00015068,2]
[323043240,1713615042686,-590.27,0.00015068,2]
[323043241,1713615042695,-500.0,0.00015068,2]
[323043242,1713615042705,-500.0,0.00015068,2]
[323043243,1713615042714,-500.0,0.00015068,2]
[323043244,1713615042723,-500.0,0.00015068,2]
[323043245,1713615042732,-500.0,0.00015068,2]
[323043246,1713615042741,-500.0,0.00015068,2]
[323043247,1713615042750,-500.0,0.00015068,2]
[323043248,1713615042760,-500.0,0.00015068,2]
[323043249,1713615042769,-500.0,0.00015068,2]
[323043250,1713615042778,-500.0,0.00015068,2]
[323043251,1713615042788,-500.0,0.00015068,2]
[323043252,1713615042798,-500.0,0.00015068,2]
[323043253,1713615042807,-500.0,0.00015068,2]
[323043254,1713615042816,-299.01622325,0.00015068,2]
[323043255,1713615042825,-500.0,0.00015068,2]
[323043256,1713615042834,-500.0,0.00015068,2]
[323043257,1713615042843,-500.0,0.00015068,2]
[323043258,1713615042853,-500.0,0.00015068,2]
[323043259,1713615042862,-500.0,0.00015068,2]
[323043260,1713615042871,-580.95,0.00015068,2]
[323043261,1713615042880,-775.5,0.00015068,2]
[323043262,1713615042889,-500.0,0.00015068,2]
[323043263,1713615042899,-500.0,0.00015068,2]
[323043264,1713615042908,-500.0,0.00015068,2]
[323043265,1713615042917,-500.0,0.00015068,2]
[323043266,1713615042927,-500.0,0.00015068,2]
[323043267,1713615042936,-699.16,0.00015068,2]
[323043268,1713615042945,-500.0,0.00015068,2]
[323043269,1713615042954,-500.0,0.00015068,2]
[323043270,1713615042964,-500.0,0.00015068,2]
[323043271,1713615042972,-500.0,0.00015068,2]
[323043272,1713615042982,-500.0,0.00015068,2]
[323043273,1713615042990,-151.0,0.00015068,2]
[323043274,1713615042999,-630.97,0.00015068,2]
[323043275,1713615043008,-500.0,0.00015068,2]
[323043276,1713615043017,-500.0,0.00015068,2]
[323043277,1713615043027,-970.1,0.00015068,2]
[323043278,1713615043036,-500.0,0.00015068,2]
[323043279,1713615043045,-151.0,0.00015068,2]
[323043280,1713615043054,-500.0,0.00015068,2]
[323043281,1713615043064,-717.02,0.00015068,2]
[323043282,1713615043074,-500.0,0.00015068,2]
[323043283,1713615043083,-500.0,0.00015068,2]
[323043284,1713615043092,-666.18,0.00015068,2]
[323043285,1713615043101,-500.0,0.00015068,2]
[323043286,1713615043110,-500.0,0.00015068,2]
[323043288,1713615043119,-500.0,0.00015068,2]
[323043290,1713615043130,-500.0,0.00015068,2]
[323043292,1713615043139,-500.0,0.00015068,2]
[323043294,1713615043151,-876.66,0.00015068,2]
[323043296,1713615043160,-169.5629873,0.00015068,2]
[323043298,1713615043169,-500.0,0.00015068,2]
[323043299,1713615043178,-502.08,0.00015068,2]
[323043300,1713615043187,-500.0,0.00015068,2]
[323043301,1713615043196,-748.28,0.00015068,2]
[323043303,1713615043206,-500.0,0.00015068,2]
[323043304,1713615043216,-500.0,0.00015068,2]
[323043305,1713615043225,-500.0,0.00015068,2]
[323043306,1713615043235,-500.0,0.00015068,2]
[323043307,1713615043245,-500.0,0.00015068,2]
[323043308,1713615043255,-571.83,0.00015068,2]
[323043310,1713615043265,-561.89,0.00015068,2]
[323043312,1713615043275,-500.0,0.00015068,2]
[323043314,1713615043284,-500.0,0.00015068,2]
[323043316,1713615043294,-500.0,0.00015068,2]
[323043317,1713615043303,-500.0,0.00015068,2]
[323043318,1713615043312,-1220.03,0.00015068,2]
[323043319,1713615043322,-500.0,0.00015068,2]
[323043320,1713615043331,-500.0,0.00015068,2]
[323043321,1713615043339,-500.0,0.00015068,2]
[323043322,1713615043349,-512.19,0.00015068,2]
[323043323,1713615043358,-500.0,0.00015068,2]
[323043324,1713615043367,-500.0,0.00015068,2]
[323043325,1713615043381,-500.0,0.00015068,2]
[323043326,1713615043391,-500.0,0.00015068,2]
[323043327,1713615043401,-769.87,0.00015068,2]
[323043328,1713615043410,-500.0,0.00015068,2]
[323043329,1713615043420,-500.0,0.00015068,2]
[323043330,1713615043429,-500.0,0.00015068,2]
[323043331,1713615043439,-612.99,0.00015068,2]
[323043332,1713615043449,-500.0,0.00015068,2]
[323043333,1713615043459,-500.0,0.00015068,2]
[323043334,1713615043469,-500.0,0.00015068,2]
[323043335,1713615043478,-708.57,0.00015068,2]
[323043336,1713615043487,-500.0,0.00015068,2]
[323043337,1713615043498,-500.0,0.00015068,2]
[323043338,1713615043508,-556.29,0.00015068,2]
[323043339,1713615043518,-500.0,0.00015068,2]
[323043340,1713615043528,-500.0,0.00015068,2]
[323043341,1713615043539,-500.0,0.00015068,2]
[323043342,1713615043548,-500.0,0.00015068,2]
[323043343,1713615043559,-500.0,0.00015068,2]
[323043344,1713615043569,-500.0,0.00015068,2]
[323043345,1713615043578,-627.14,0.00015068,2]
[323043346,1713615043588,-151.0,0.00015068,2]
[323043347,1713615043598,-313.66725937,0.00015068,2]
[323043348,1713615043607,-500.0,0.00015068,2]
[323043349,1713615043617,-500.0,0.00015068,2]
[323043350,1713615043627,-500.0,0.00015068,2]
[323043351,1713615043637,-500.0,0.00015068,2]
[323043352,1713615043648,-500.0,0.00015068,2]
[323043353,1713615043658,-531.26,0.00015068,2]
[323043354,1713615043667,-500.0,0.00015068,2]
[323043355,1713615043677,-500.0,0.00015068,2]
[323043356,1713615043686,-505.87,0.00015068,2]
[323043357,1713615043695,-151.0,0.00015068,2]
[323043358,1713615043705,-500.0,0.00015068,2]
[323043359,1713615043714,-803.54,0.00015068,2]
[323043360,1713615043723,-500.0,0.00015068,2]
[323043361,1713615043733,-660.57,0.00015068,2]
[323043362,1713615043742,-598.11,0.00015068,2]
[323043363,1713615043752,-500.0,0.00015068,2]
[323043364,1713615043762,-578.39,0.00015068,2]
[323043365,1713615043771,-641.19,0.00015068,2]
[323043366,1713615043780,-500.0,0.00015068,2]
[323043367,1713615043789,-500.0,0.00015068,2]
[323043368,1713615043798,-547.06,0.00015068,2]
[323043369,1713615043807,-951.98,0.00015068,2]
[323043370,1713615043816,-500.0,0.00015068,2]
[323043371,1713615043825,-500.0,0.00015068,2]
[323043372,1713615043834,-151.0,0.00015068,2]
[323043373,1713615043843,-500.0,0.00015068,2]
[323043374,1713615043853,-500.0,0.00015068,2]
[323043376,1713615043862,-500.0,0.00015068,2]
[323043378,1713615043872,-500.0,0.00015068,2]
[323043380,1713615043881,-500.0,0.00015068,2]
[323043382,1713615043890,-500.0,0.00015068,2]
[323043384,1713615043901,-862.96,0.00015068,2]
[323043386,1713615043910,-595.97,0.00015068,2]
[323043388,1713615043918,-525.53124216,0.00015068,2]
[323043390,1713615043928,-500.0,0.00015068,2]
[323043392,1713615043937,-500.0,0.00015068,2]
[323043394,1713615043945,-538.98,0.00015068,2]
[323043396,1713615043956,-500.0,0.00015068,2]
[323043398,1713615043965,-500.0,0.00015068,2]
[323043400,1713615043974,-500.0,0.00015068,2]
[323043402,1713615043983,-151.0,0.00015068,2]
[323043404,1713615043992,-500.0,0.00015068,2]
[323043406,1713615044001,-500.0,0.00015068,2]
[323043408,1713615044011,-500.0,0.00015068,2]
[323043410,1713615044020,-500.0,0.00015068,2]
[323043412,1713615044029,-500.0,0.00015068,2]
[323043414,1713615044038,-595.2,0.00015068,2]
[323043416,1713615044047,-500.0,0.00015068,2]
[323043417,1713615044057,-558.21,0.00015068,2]
[323043418,1713615044066,-500.0,0.00015068,2]
[323043419,1713615044075,-564.88,0.00015068,2]
[323043420,1713615044084,-500.0,0.00015068,2]
[323043421,1713615044093,-204.130608,0.00015068,2]
[323043422,1713615044102,-640.53927703,0.00015068,2]
[323043423,1713615044111,-500.0,0.00015068,2]
[323043424,1713615044120,-500.0,0.00015068,2]
[323043425,1713615044129,-500.0,0.00015068,2]
[323043426,1713615044138,-500.0,0.00015068,2]
[323043428,1713615044148,-319.81853624,0.00015068,2]
[323043430,1713615044157,-500.0,0.00015068,2]
[323043432,1713615044167,-500.0,0.00015068,2]
[323043434,1713615044176,-714.19,0.00015068,2]
[323043436,1713615044185,-152.595039,0.00015068,2]
[323043438,1713615044195,-500.0,0.00015068,2]
[323043440,1713615044204,-500.0,0.00015068,2]
[323043442,1713615044214,-500.0,0.00015068,2]
[323043444,1713615044224,-500.0,0.00015068,2]
[323043446,1713615044233,-1206.79,0.00015068,2]
[323043447,1713615044242,-500.0,0.00015068,2]
[323043448,1713615044252,-500.0,0.00015068,2]
[323043449,1713615044261,-500.0,0.00015068,2]
[323043450,1713615044271,-500.0,0.00015068,2]
[323043451,1713615044280,-500.0,0.00015068,2]
[323043452,1713615044289,-500.0,0.00015068,2]
[323043453,1713615044299,-1382.29,0.00015068,2]
[323043454,1713615044312,-583.86,0.00015068,2]
[323043455,1713615044321,-500.0,0.00015068,2]
[323043456,1713615044331,-500.0,0.00015068,2]
[323043457,1713615044340,-500.0,0.00015068,2]
[323043458,1713615044350,-500.0,0.00015068,2]
[323043459,1713615044359,-500.0,0.00015068,2]
[323043460,1713615044372,-729.34,0.00015068,2]
[323043461,1713615044381,-500.0,0.00015068,2]
[323043462,1713615044390,-500.0,0.00015068,2]
[323043463,1713615044400,-559.59,0.00015068,2]
[323043464,1713615044411,-500.0,0.00015068,2]
[323043465,1713615044421,-612.49,0.00015068,2]
[323043466,1713615044431,-812.58,0.00015068,2]
[323043467,1713615044441,-500.0,0.00015068,2]
[323043468,1713615044451,-500.0,0.00015068,2]
[323043469,1713615044461,-20000.0,0.00015068,5]
[323043470,1713615044471,-500.0,0.00015068,2]
[323043471,1713615044481,-500.0,0.00015068,2]
[323043472,1713615044490,-500.0,0.00015068,2]
[323043473,1713615044500,-500.0,0.00015068,2]
[323043474,1713615044509,-500.0,0.00015068,2]
[323043475,1713615044744,-500.0,0.00015068,2]
[323043476,1713615044754,-777.99,0.00015068,2]